bitfinex/quotes_BTCUSD_20241101
["timestamp","ask_amount","ask_price","bid_price","bid_amount"]
[1730486708026,0.002,69367.0,69366.0,0.000821]
[1730486708478,0.001,69367.0,69366.0,0.000821]
[1730486709848,0.002,69367.0,69366.0,0.000821]
[1730486710944,0.102,69367.0,69366.0,0.000821]
[1730486711151,0.32426,69367.0,69366.0,0.000821]
[1730486711359,0.40516306,69367.0,69366.0,0.000821]
[1730486711774,0.36889419,69367.0,69366.0,0.000821]
[1730486712629,0.41065786,69367.0,69366.0,0.000821]
[1730486713050,0.36889419,69367.0,69366.0,0.001821]
[1730486713283,0.43267107,69367.0,69366.0,0.001821]
[1730486713508,0.36789419,69367.0,69366.0,0.001821]
[1730486713739,0.37889419,69367.0,69366.0,0.002821]
[1730486714424,0.36789419,69367.0,69366.0,0.001821]
[1730486714633,0.36789419,69367.0,69366.0,0.000821]
[1730486714844,0.48590561,69367.0,69366.0,0.001821]
[1730486715050,0.49990561,69367.0,69366.0,0.002821]
[1730486715269,0.38089419,69367.0,69366.0,0.000821]
[1730486715688,0.39489419,69367.0,69366.0,0.001821]
[1730486716522,0.40589419,69367.0,69366.0,0.002821]
[1730486720899,0.26173419,69367.0,69366.0,0.002821]
[1730486721136,0.18363419,69367.0,69366.0,0.002821]
[1730486721562,0.039,69367.0,69366.0,0.002821]
[1730486721800,0.2688978,69367.0,69366.0,0.002821]
[1730486722004,0.2408978,69367.0,69366.0,0.001821]
[1730486722212,0.2408978,69367.0,69366.0,0.002821]
[1730486722213,0.24696,69367.0,69366.0,0.002821]
[1730486722884,0.2028,69367.0,69366.0,0.002821]
[1730486723104,0.33296,69367.0,69366.0,0.001821]
[1730486723529,0.37759584,69367.0,69366.0,0.001821]
[1730486723738,0.66610652,69367.0,69366.0,0.000821]
[1730486723945,0.55899584,69367.0,69366.0,0.001821]
[1730486724158,0.67615317,69367.0,69366.0,0.001821]
[1730486724362,0.72045109,69367.0,69366.0,0.002821]
[1730486724575,0.71045109,69367.0,69366.0,0.001821]
[1730486724790,0.244167,69364.0,69360.0,0.000821]
[1730486725033,0.69285809,69364.0,69360.0,0.000821]
[1730486726363,0.69285809,69364.0,69363.0,0.001821]
[1730486726364,0.70585809,69364.0,69363.0,0.001821]
[1730486727435,0.71585809,69364.0,69363.0,0.002821]
[1730486727688,0.70285809,69364.0,69363.0,0.001821]
[1730486727891,0.70285809,69364.0,69363.0,0.002821]
[1730486728097,0.70685809,69364.0,69363.0,0.001821]
[1730486728318,0.71685809,69364.0,69363.0,0.001821]
[1730486729013,0.73085809,69364.0,69363.0,0.002821]
[1730486729443,0.70285809,69364.0,69363.0,0.001821]
[1730486729643,0.70685809,69364.0,69363.0,0.001821]
[1730486729845,0.71685809,69364.0,69363.0,0.002821]
[1730486731371,0.57279109,69364.0,69360.0,0.000821]
[1730486731602,0.57279109,69364.0,69355.0,0.032]
[1730486731603,0.2961,69360.0,69355.0,0.032]
[1730486731820,0.64766535,69356.0,69355.0,0.032]
[1730486732050,0.70237409,69356.0,69355.0,0.032]
[1730486732697,0.70237409,69356.0,69355.0,0.033]
[1730486733293,0.56391884,69356.0,69355.0,0.033]
[1730486733741,0.56391884,69356.0,69355.0,0.034]
[1730486733956,0.57391884,69356.0,69355.0,0.034]
[1730486734613,0.57391884,69356.0,69355.0,0.033]
[1730486734842,0.31281884,69356.0,69355.0,0.034]
[1730486735054,0.21141677,69356.0,69355.0,0.034]
[1730486735473,0.16863584,69356.0,69355.0,0.034]
[1730486736526,0.024,69356.0,69355.0,0.034]
[1730486736748,0.024,69356.0,69355.0,0.17533874]
[1730486736987,0.024,69356.0,69355.0,0.17245525]
[1730486737423,0.014,69356.0,69355.0,0.17433862]
[1730486737633,0.25831675,69369.0,69355.0,0.17333862]
[1730486737853,0.25831675,69369.0,69356.0,0.13845525]
[1730486738366,0.001642,69364.0,69356.0,0.13845525]
[1730486738809,0.001642,69364.0,69359.0,0.0677]
[1730486739017,0.001642,69364.0,69360.0,0.13845525]
[1730486739443,0.001642,69364.0,69361.0,0.00288289]
[1730486739663,0.001642,69364.0,69362.0,0.13845525]
[1730486739873,0.001642,69364.0,69363.0,0.00288289]
[1730486740081,0.001642,69364.0,69363.0,0.13845525]
[1730486740964,0.002642,69364.0,69363.0,0.13845525]
[1730486741194,0.001642,69364.0,69363.0,0.13845525]
[1730486742017,0.001642,69364.0,69363.0,0.13945525]
[1730486742240,0.001642,69364.0,69363.0,0.16245525]
[1730486744204,0.001642,69364.0,69363.0,0.16745525]
[1730486744622,0.001642,69364.0,69363.0,0.16145525]
[1730486744842,0.001642,69364.0,69363.0,0.16745525]
[1730486744843,0.002642,69364.0,69363.0,0.16745525]
[1730486745692,0.002642,69364.0,69363.0,0.19097078]
[1730486746130,0.002642,69364.0,69363.0,0.19597078]
[1730486746822,0.002642,69364.0,69363.0,0.19885356]
[1730486747037,0.002642,69364.0,69363.0,0.34302256]
[1730486747261,0.002642,69364.0,69363.0,0.40783978]
[1730486748172,0.001642,69364.0,69363.0,0.40183978]
[1730486748726,0.002642,69364.0,69363.0,0.41583978]
[1730486749164,0.002642,69364.0,69363.0,0.41083978]
[1730486749596,0.002642,69364.0,69363.0,0.42483978]
[1730486752456,0.001642,69376.0,69364.0,0.023]
[1730486752724,0.21553582,69389.0,69377.0,0.288279]
[1730486752952,0.04285119,69412.0,69396.0,0.1441]
[1730486753189,0.16255119,69419.0,69391.0,0.13437788]
[1730486753402,0.1197,69419.0,69399.0,0.144094]
[1730486753630,0.1197,69419.0,69400.0,0.0374094]
[1730486753894,0.1197,69419.0,69402.0,0.023]
[1730486754114,0.1197,69419.0,69403.0,0.02599371]
[1730486754356,0.1,69418.0,69405.0,0.21553582]
[1730486754582,0.244055,69418.0,69406.0,0.02602149]
[1730486754809,0.1,69416.0,69406.0,0.02602149]
[1730486755024,0.1,69410.0,69393.0,0.023]
[1730486755240,0.1,69412.0,69404.0,0.21553582]
[1730486755456,0.1,69412.0,69395.0,0.023]
[1730486755663,0.1,69412.0,69402.0,0.001]
[1730486755877,0.1,69412.0,69403.0,0.0260247]
[1730486756143,0.1,69412.0,69399.0,0.013]
[1730486756359,0.21553582,69417.0,69399.0,0.013]
[1730486756360,0.1,69405.0,69400.0,0.21553582]
[1730486756601,0.244082,69405.0,69400.0,0.21553582]
[1730486756822,0.078,69402.0,69385.0,0.21553582]
[1730486757037,0.078,69402.0,69393.0,0.02155358]
[1730486757038,0.1,69400.0,69393.0,0.02155358]
[1730486757252,0.078,69402.0,69393.0,0.02155358]
[1730486757433,0.078,69402.0,69393.0,0.02255358]
[1730486757691,0.222088,69402.0,69393.0,0.02155358]
[1730486757904,0.078,69402.0,69393.0,0.02155358]
[1730486758998,0.078,69402.0,69394.0,0.02370894]
[1730486759689,0.078,69402.0,69400.0,0.001]
[1730486760172,0.078,69402.0,69385.0,0.21553582]
[1730486760173,0.288189,69399.0,69385.0,0.21553582]
[1730486760381,0.2873,69401.0,69392.0,0.21553582]
[1730486760382,0.144103,69395.0,69392.0,0.21553582]
[1730486760596,0.1,69394.0,69385.0,0.21553582]
[1730486761684,0.1,69397.0,69385.0,0.22453582]
[1730486761900,0.1,69400.0,69385.0,0.21553582]
[1730486762132,0.1,69396.0,69385.0,0.22453582]
[1730486762588,0.1,69396.0,69385.0,0.21653582]
[1730486763022,0.1,69396.0,69385.0,0.21753582]
[1730486763233,0.001,69397.0,69386.0,0.02175358]
[1730486763457,0.244094,69399.0,69379.0,0.023]
[1730486763458,0.1,69399.0,69379.0,0.023]
[1730486763775,0.0802,69391.0,69385.0,0.004]
[1730486763873,0.0802,69391.0,69385.0,0.22053582]
[1730486764107,0.0802,69391.0,69385.0,0.001]
[1730486764353,0.0802,69391.0,69385.0,0.002]
[1730486764573,0.0802,69391.0,69385.0,0.01734553]
[1730486765013,0.0802,69391.0,69385.0,0.01634553]
[1730486766110,0.1,69388.0,69379.0,0.001]
[1730486766330,0.1,69388.0,69381.0,0.21553582]
[1730486766545,0.1,69386.0,69385.0,0.003]
[1730486766971,0.244121,69386.0,69373.0,0.023]
[1730486767215,0.325321,69386.0,69385.0,0.003]
[1730486767475,0.325321,69386.0,69373.0,0.21553582]
[1730486767476,0.03326887,69385.0,69373.0,0.21553582]
[1730486767699,0.2692,69374.0,69354.0,0.0182447]
[1730486767939,0.24415,69372.0,69371.0,0.21553582]
[1730486768167,0.24415,69372.0,69354.0,0.0182447]
[1730486768168,0.244164,69365.0,69354.0,0.0182447]
[1730486768390,0.1,69364.0,69357.0,0.21553582]
[1730486768615,0.1,69364.0,69358.0,0.02756325]
[1730486768853,0.1,69364.0,69359.0,0.00288326]
[1730486769325,0.21553582,69373.0,69359.0,0.00288326]
[1730486769326,0.1,69373.0,69359.0,0.00288326]
[1730486769541,0.1,69373.0,69358.0,0.13927625]
[1730486769789,0.1,69373.0,69359.0,0.21553582]
[1730486770026,0.1,69373.0,69364.0,0.001]
[1730486770248,0.1,69371.0,69360.0,0.03876331]
[1730486770463,0.001,69364.0,69358.0,0.001821]
[1730486770696,0.1,69362.0,69359.0,0.001]
[1730486770920,0.244176,69360.0,69359.0,0.001]
[1730486771148,0.244177,69359.0,69358.0,0.001821]
[1730486771861,0.244177,69359.0,69358.0,0.000821]
[1730486772778,0.1,69359.0,69358.0,0.000821]
[1730486773017,0.001,69359.0,69358.0,0.000821]
[1730486773471,0.1,69360.0,69358.0,0.000821]
[1730486773924,0.245177,69359.0,69358.0,0.000821]
[1730486774136,0.245177,69359.0,69358.0,0.001821]
[1730486774390,0.245177,69359.0,69358.0,0.000821]
[1730486775272,0.244177,69359.0,69358.0,0.000821]
[1730486776598,0.38363225,69359.0,69358.0,0.000821]
[1730486776808,0.144183,69356.0,69355.0,0.032821]
[1730486777030,0.38263825,69356.0,69355.0,0.032821]
[1730486779053,0.244183,69356.0,69355.0,0.032821]
[1730486779479,0.244183,69356.0,69355.0,0.033821]
[1730486779907,0.244183,69356.0,69355.0,0.032821]
[1730486780125,0.38263825,69356.0,69355.0,0.034821]
[1730486780349,0.38363825,69356.0,69355.0,0.034821]
[1730486780552,0.38363825,69356.0,69355.0,0.033821]
[1730486780760,0.38363825,69356.0,69355.0,0.034821]
[1730486781641,0.46403825,69356.0,69355.0,0.034821]
[1730486781854,0.244185,69355.0,69354.0,0.0182447]
[1730486782079,0.66124025,69355.0,69354.0,0.0182447]
[1730486782732,0.66124025,69355.0,69354.0,0.018185]
[1730486783186,0.66224025,69355.0,69354.0,0.019185]
[1730486783620,0.66224025,69355.0,69354.0,0.020185]
[1730486786710,0.66224025,69355.0,69354.0,0.021006]
[1730486787395,0.523785,69355.0,69354.0,0.021006]
[1730486787860,0.1822,69355.0,69354.0,0.021006]
[1730486788091,0.326385,69355.0,69354.0,0.021006]
[1730486788340,0.1822,69355.0,69354.0,0.021006]
[1730486788554,0.101,69355.0,69354.0,0.021006]
[1730486789049,0.001,69355.0,69354.0,0.021006]
[1730486789547,0.001,69355.0,69354.0,0.020006]
[1730486789772,0.001,69355.0,69354.0,0.021006]
[1730486789995,0.001642,69359.0,69354.0,0.019006]
[1730486791346,0.001,69355.0,69354.0,0.020006]
[1730486791563,0.001,69355.0,69354.0,0.021006]
[1730486791778,0.001642,69359.0,69354.0,0.020006]
[1730486792215,0.002642,69359.0,69354.0,0.021006]
[1730486792666,0.002642,69359.0,69354.0,0.020006]
[1730486793798,0.002642,69359.0,69354.0,0.021006]
[1730486795888,0.002642,69359.0,69355.0,0.35687436]
[1730486796095,0.002642,69359.0,69356.0,0.06078804]
[1730486796321,0.002642,69359.0,69358.0,0.023]
[1730486796540,0.002642,69359.0,69358.0,0.16145525]
[1730486798120,0.001642,69359.0,69358.0,0.16145525]
[1730486798346,0.001642,69359.0,69358.0,0.16645525]
[1730486798599,0.002642,69359.0,69358.0,0.16645525]
[1730486799039,0.001642,69359.0,69358.0,0.16645525]
[1730486799253,0.001642,69359.0,69358.0,0.17145525]
[1730486803533,0.001642,69359.0,69358.0,0.19050138]
[1730486803959,0.001642,69359.0,69358.0,0.17145525]
[1730486812695,0.001642,69359.0,69358.0,0.31851692]
[1730486812910,0.001642,69359.0,69358.0,0.38073425]
[1730486814472,0.001642,69359.0,69358.0,0.17145525]
[1730486815153,0.001642,69359.0,69358.0,0.31563425]
[1730486815413,0.001642,69359.0,69358.0,0.43009586]
[1730486815638,0.001642,69359.0,69358.0,0.49519586]
[1730486816516,0.21553582,69378.0,69358.0,0.49519586]
[1730486816517,0.21553582,69378.0,69375.0,0.144144]
[1730486816760,0.21553582,69378.0,69376.0,0.16145525]
[1730486816975,0.1,69386.0,69376.0,0.16145525]
[1730486817186,0.1,69386.0,69378.0,0.023]
[1730486817405,0.1,69386.0,69380.0,0.023]
[1730486817675,0.1,69386.0,69382.0,0.023]
[1730486817890,0.21553582,69395.0,69384.0,0.023]
[1730486818127,0.1858,69397.0,69386.0,0.023]
[1730486818362,0.1858,69397.0,69387.0,0.13845525]
[1730486818576,0.1858,69397.0,69388.0,0.23853582]
[1730486818812,0.0763,69400.0,69390.0,0.023]
[1730486819024,0.0763,69400.0,69392.0,0.023]
[1730486819244,0.0763,69400.0,69394.0,0.023]
[1730486819478,0.0763,69400.0,69396.0,0.023]
[1730486819707,0.0763,69400.0,69397.0,0.13845525]
[1730486819917,0.0763,69400.0,69398.0,0.023]
[1730486820150,0.0763,69400.0,69398.0,0.16145525]
[1730486821056,0.144094,69399.0,69397.0,0.002]
[1730486821278,0.0763,69400.0,69393.0,0.03285692]
[1730486821279,0.220393,69400.0,69394.0,0.023]
[1730486821527,0.220393,69400.0,69398.0,0.002]
[1730486821528,0.144094,69399.0,69398.0,0.002]
[1730486821753,0.1763,69400.0,69398.0,0.002]
[1730486821973,0.0763,69400.0,69398.0,0.002]
[1730486822641,0.145736,69399.0,69398.0,0.001]
[1730486822860,0.001642,69399.0,69378.0,0.21553582]
[1730486823078,0.244096,69398.0,69397.0,0.001]
[1730486823750,0.1,69398.0,69397.0,0.001]
[1730486824171,0.001642,69399.0,69397.0,0.13945525]
[1730486824404,0.001642,69399.0,69398.0,0.17540078]
[1730486825393,0.001642,69399.0,69398.0,0.16145525]
[1730486826874,0.001642,69399.0,69398.0,0.023]
[1730486827088,0.001642,69399.0,69397.0,0.001]
[1730486827527,0.145736,69399.0,69398.0,0.001]
[1730486827794,0.435536,69399.0,69398.0,0.001]
[1730486828269,0.291442,69399.0,69398.0,0.001]
[1730486828487,0.291442,69399.0,69397.0,0.001]
[1730486828488,0.1,69398.0,69397.0,0.001]
[1730486829161,0.326096,69398.0,69397.0,0.001]
[1730486829391,0.517133,69380.0,69379.0,0.21553582]
[1730486829877,0.244152,69371.0,69363.0,0.21553582]
[1730486830301,0.288313,69369.0,69363.0,0.21553582]
[1730486830512,0.144163,69366.0,69363.0,0.35399107]
[1730486830735,0.1817,69368.0,69363.0,0.35399107]
[1730486830954,0.1817,69368.0,69363.0,0.13845525]
[1730486831402,0.0817,69368.0,69363.0,0.13845525]
[1730486831623,0.288275,69379.0,69357.0,0.00216259]
[1730486831624,0.0785,69378.0,69364.0,0.13845525]
[1730486831849,0.1,69377.0,69364.0,0.13845525]
[1730486832281,0.1,69377.0,69370.0,0.003]
[1730486832509,0.1,69384.0,69373.0,0.023]
[1730486832717,0.1,69384.0,69374.0,0.13845525]
[1730486833008,0.21553582,69379.0,69375.0,0.023]
[1730486833222,0.1,69372.0,69364.0,0.023]
[1730486833435,0.1,69372.0,69370.0,0.21553582]
[1730486833674,0.1,69372.0,69366.0,0.023]
[1730486833870,0.1,69372.0,69367.0,0.13845525]
[1730486834267,0.1,69371.0,69364.0,0.013]
[1730486834522,0.1,69368.0,69364.0,0.15145525]
[1730486834736,0.144163,69366.0,69364.0,0.13845525]
[1730486834978,0.1,69368.0,69356.0,0.21553582]
[1730486835185,0.1,69368.0,69367.0,0.007]
[1730486835610,0.244158,69368.0,69359.0,0.023]
[1730486835831,0.144157,69369.0,69364.0,0.004]
[1730486836047,0.1774,69370.0,69364.0,0.004]
[1730486836254,0.1,69367.0,69364.0,0.004]
[1730486837361,0.1,69367.0,69361.0,0.023]
[1730486837566,0.1,69367.0,69363.0,0.023]
[1730486837777,0.1,69367.0,69363.0,0.13845525]
[1730486838191,0.1774,69370.0,69364.0,0.023]
[1730486838428,0.1,69366.0,69364.0,0.023]
[1730486839515,0.1,69367.0,69364.0,0.023]
[1730486839733,0.1774,69370.0,69364.0,0.023]
[1730486839984,0.1,69366.0,69364.0,0.023]
[1730486840207,0.288331,69365.0,69357.0,0.00216259]
[1730486840422,0.1,69364.0,69358.0,0.37699107]
[1730486840788,0.144178,69359.0,69335.0,0.335853]
[1730486841019,0.1,69360.0,69359.0,0.21553582]
[1730486841233,0.1,69360.0,69359.0,0.13845525]
[1730486841927,0.244168,69364.0,69360.0,0.023]
[1730486842157,0.1,69362.0,69360.0,0.023]
[1730486842408,0.434385,69355.0,69341.0,0.21562582]
[1730486842591,0.434385,69355.0,69348.0,0.21553582]
[1730486842832,0.3696,69355.0,69354.0,0.028006]
[1730486843277,0.3696,69355.0,69354.0,0.019006]
[1730486844586,0.513785,69355.0,69354.0,0.019006]
[1730486845024,0.3696,69355.0,69354.0,0.019006]
[1730486846109,0.1,69364.0,69354.0,0.18046125]
[1730486846337,0.1,69362.0,69355.0,0.16145525]
[1730486846564,0.1,69362.0,69355.0,0.17950138]
[1730486846785,0.1,69362.0,69355.0,0.17935964]
[1730486847060,0.1,69362.0,69354.0,0.019006]
[1730486847061,0.1,69358.0,69354.0,0.019006]
[1730486847281,0.520585,69355.0,69354.0,0.019006]
[1730486847506,0.52061,69343.0,69342.0,0.21553582]
[1730486848176,0.244212,69342.0,69341.0,9e-05]
[1730486850957,0.24721339,69342.0,69341.0,9e-05]
[1730486851852,0.73019246,69342.0,69334.0,0.000815]
[1730486852098,0.325227,69335.0,69334.0,0.21553582]
[1730486852576,0.325227,69335.0,69327.0,0.21553582]
[1730486852577,0.226829,69334.0,69327.0,0.21553582]
[1730486853265,0.326829,69334.0,69327.0,0.21553582]
[1730486853980,0.326829,69334.0,69333.0,25.001]
[1730486854218,0.340829,69334.0,69333.0,25.001]
[1730486858536,0.47928425,69334.0,69333.0,24.77661659]
[1730486858757,0.67778425,69334.0,69333.0,24.77661659]
[1730486858962,0.67778425,69334.0,69333.0,24.77743659]
[1730486861817,0.67778425,69334.0,69333.0,24.56433105]
[1730486862030,0.67778425,69334.0,69333.0,24.55305318]
[1730486863335,0.67778425,69334.0,69333.0,23.78721822]
[1730486863570,0.67778425,69334.0,69333.0,23.50911822]
[1730486863571,0.71405085,69334.0,69333.0,23.50911822]
[1730486863861,0.67778425,69334.0,69333.0,23.36488822]
[1730486864315,0.67778425,69334.0,69333.0,23.36388822]
[1730486864732,0.68178425,69334.0,69333.0,23.17706377]
[1730486864942,0.66378425,69334.0,69333.0,22.99527481]
[1730486865445,0.67778425,69334.0,69333.0,22.99627481]
[1730486865655,0.67778425,69334.0,69333.0,22.96742881]
[1730486865656,0.70460562,69334.0,69333.0,22.96742881]
[1730486865880,0.69060562,69334.0,69333.0,22.85104481]
[1730486866100,0.70460562,69334.0,69333.0,22.85204481]
[1730486866557,0.66378425,69334.0,69333.0,22.85204481]
[1730486866766,0.67778425,69334.0,69333.0,22.85204481]
[1730486866972,0.66378425,69334.0,69333.0,22.79335281]
[1730486867144,0.66378425,69334.0,69333.0,22.76450681]
[1730486867375,0.66778425,69334.0,69333.0,22.76550681]
[1730486867726,0.66778425,69334.0,69333.0,22.73666081]
[1730486867937,0.68178425,69334.0,69333.0,22.73666081]
[1730486868814,0.66778425,69334.0,69333.0,22.73566081]
[1730486869427,0.65378425,69334.0,69333.0,22.73566081]
[1730486869672,0.66778425,69334.0,69333.0,22.73666081]
[1730486869889,0.68178425,69334.0,69333.0,22.73766081]
[1730486870076,0.68178425,69334.0,69333.0,22.73666081]
[1730486870580,0.69578425,69334.0,69333.0,22.73766081]
[1730486877398,0.74022219,69334.0,69333.0,22.73766081]
[1730486877604,0.54172219,69334.0,69333.0,22.73766081]
[1730486877813,0.35912219,69334.0,69333.0,22.73766081]
[1730486878033,0.38170437,69334.0,69333.0,22.73766081]
[1730486878881,0.36770437,69334.0,69333.0,22.73666081]
[1730486879171,0.36770437,69334.0,69333.0,22.73766081]
[1730486879381,0.48170437,69334.0,69333.0,22.73766081]
[1730486879605,0.45370437,69334.0,69333.0,22.73666081]
[1730486879824,0.43970437,69334.0,69333.0,22.73566081]
[1730486880031,0.45370437,69334.0,69333.0,22.73200081]
[1730486880262,0.43970437,69334.0,69333.0,22.73100081]
[1730486880475,0.43970437,69334.0,69333.0,22.60154502]
[1730486880476,0.41712219,69334.0,69333.0,22.60154502]
[1730486880700,0.43112219,69334.0,69333.0,22.38725365]
[1730486880904,0.50632219,69334.0,69333.0,22.38725365]
[1730486881113,0.52032219,69334.0,69333.0,22.38825365]
[1730486881342,0.52032219,69334.0,69333.0,22.38725365]
[1730486881576,0.73148879,69334.0,69333.0,22.35840765]
[1730486881785,5.56813716,69334.0,69333.0,22.24302365]
[1730486882420,5.59113716,69334.0,69333.0,22.24302365]
[1730486882627,5.57713716,69334.0,69333.0,22.24202365]
[1730486882864,5.60677916,69334.0,69333.0,22.09979365]
[1730486883076,5.59277916,69334.0,69333.0,22.09879365]
[1730486883296,5.55651256,69334.0,69333.0,22.09879365]
[1730486883508,5.57051256,69334.0,69333.0,22.09979365]
[1730486883723,5.60677916,69334.0,69333.0,21.884338]
[1730486883946,5.67057184,69334.0,69333.0,21.884338]
[1730486884175,5.60677916,69334.0,69333.0,21.884338]
[1730486884402,5.8313834,69334.0,69333.0,21.884338]
[1730486884642,5.903256,69334.0,69333.0,21.884338]
[1730486884851,5.903256,69334.0,69333.0,21.826646]
[1730486885057,5.903256,69334.0,69333.0,21.768954]
[1730486885503,5.751356,69334.0,69333.0,21.740108]
[1730486885713,3.87586223,69334.0,69333.0,21.595878]
[1730486885933,3.83568556,69334.0,69333.0,21.595878]
[1730486886139,3.83568556,69334.0,69333.0,21.317778]
[1730486886140,3.92084439,69334.0,69333.0,21.317778]
[1730486886354,3.81857347,69334.0,69333.0,20.793778]
[1730486886579,3.71225233,69334.0,69333.0,20.764932]
[1730486886853,3.71225233,69334.0,69333.0,20.649548]
[1730486887084,3.86415233,69334.0,69333.0,20.60204614]
[1730486887297,3.94503667,69334.0,69333.0,20.60004614]
[1730486887503,3.94134074,69334.0,69333.0,20.60004614]
[1730486887724,3.97303667,69334.0,69333.0,20.51350814]
[1730486887938,3.95903667,69334.0,69333.0,20.48466214]
[1730486888162,3.95903667,69334.0,69333.0,20.45581614]
[1730486888782,3.94503667,69334.0,69333.0,20.39812414]
[1730486889201,3.94503667,69334.0,69333.0,20.31158614]
[1730486889202,3.95903667,69334.0,69333.0,20.31158614]
[1730486889632,4.16118749,69334.0,69333.0,20.19620214]
[1730486889850,4.16118749,69334.0,69333.0,20.16735614]
[1730486890051,4.16526833,69334.0,69333.0,20.16735614]
[1730486890305,4.19141803,69334.0,69333.0,20.16735614]
[1730486890553,4.17741803,69334.0,69333.0,20.16735614]
[1730486890776,4.20541803,69334.0,69333.0,20.02312614]
[1730486891016,4.19141803,69334.0,69333.0,20.02312614]
[1730486891226,4.89141803,69334.0,69333.0,20.02312614]
[1730486891452,4.90541803,69334.0,69333.0,20.02312614]
[1730486892367,4.89141803,69334.0,69333.0,19.90774214]
[1730486892568,4.87741803,69334.0,69333.0,19.87889614]
[1730486892802,4.87741803,69334.0,69333.0,19.82120414]
[1730486893239,4.89141803,69334.0,69333.0,19.76351214]
[1730486893476,4.75455605,69334.0,69333.0,19.73466614]
[1730486893676,3.63118189,69334.0,69333.0,19.59043614]
[1730486893925,2.02668655,69334.0,69333.0,19.59043614]
[1730486894428,2.05468655,69334.0,69333.0,19.59043614]
[1730486894605,2.05468655,69334.0,69333.0,19.47505214]
[1730486894606,2.45989527,69334.0,69333.0,19.47505214]
[1730486894878,3.26654433,69334.0,69333.0,19.44620614]
[1730486895089,3.38954433,69334.0,69333.0,19.44620614]
[1730486895311,3.37554433,69334.0,69333.0,19.44620614]
[1730486895746,3.36791656,69334.0,69333.0,19.26436223]
[1730486895995,3.38191656,69334.0,69333.0,19.22830138]
[1730486896210,3.45452656,69334.0,69333.0,19.22830138]
[1730486896628,3.46852656,69334.0,69333.0,19.16638094]
[1730486896833,3.45452656,69334.0,69333.0,19.07984294]
[1730486897054,3.46852656,69334.0,69333.0,19.07984294]
[1730486897285,3.74752656,69334.0,69333.0,19.00940039]
[1730486897523,3.73352656,69334.0,69333.0,19.00940039]
[1730486897746,3.73352656,69334.0,69333.0,18.89401639]
[1730486897970,3.74752656,69334.0,69333.0,18.89401639]
[1730486898216,3.66518025,69334.0,69333.0,14.37978704]
[1730486898464,1.95528025,69334.0,69333.0,10.95841836]
[1730486898731,2.02776477,69334.0,69333.0,8.73703436]
[1730486898949,2.02776477,69334.0,69333.0,6.79303436]
[1730486898950,6.69360725,69334.0,69333.0,6.79303436]
[1730486899157,6.67960725,69334.0,69333.0,6.46903436]
[1730486899373,6.69360725,69334.0,69333.0,6.30703436]
[1730486899588,6.70760725,69334.0,69333.0,6.30703436]
[1730486899797,6.69360725,69334.0,69333.0,6.22049636]
[1730486900036,6.70760725,69334.0,69333.0,6.19165036]
[1730486900686,6.70760725,69334.0,69333.0,6.07626636]
[1730486900907,6.72160725,69334.0,69333.0,6.07626636]
[1730486901339,6.70760725,69334.0,69333.0,6.07626636]
[1730486901559,6.71001383,69334.0,69333.0,6.04742036]
[1730486901792,6.72401383,69334.0,69333.0,5.96088236]
[1730486902747,6.72401383,69334.0,69333.0,5.93203636]
[1730486903194,6.76398411,69334.0,69333.0,5.84549836]
[1730486903632,7.0414689,69334.0,69333.0,5.78780636]
[1730486903862,7.0414689,69334.0,69333.0,5.75896036]
[1730486904511,7.04397435,69334.0,69333.0,5.73011436]
[1730486904745,7.04397435,69334.0,69333.0,5.70126836]
[1730486905402,7.07596051,69334.0,69333.0,5.64357636]
[1730486906065,7.07596051,69334.0,69333.0,5.27431836]
[1730486906286,7.07596051,69334.0,69333.0,5.08829228]
[1730486906287,2.61313351,69334.0,69333.0,5.08829228]
[1730486906533,1.91517707,69334.0,69333.0,5.08829228]
[1730486906749,1.7221517,69334.0,69333.0,5.00175428]
[1730486906965,1.6941517,69334.0,69333.0,4.97290828]
[1730486907176,1.89568752,69334.0,69333.0,4.97290828]
[1730486907391,1.71675055,69334.0,69333.0,4.97290828]
[1730486907593,1.71675055,69334.0,69333.0,4.91521628]
[1730486907803,1.90824906,69334.0,69333.0,4.88637028]
[1730486908016,2.25474906,69334.0,69333.0,4.88637028]
[1730486908428,2.26874906,69334.0,69333.0,4.88637028]
[1730486908632,2.26874906,69334.0,69333.0,4.77503617]
[1730486908862,2.32652406,69334.0,69333.0,4.71533592]
[1730486909077,2.33928775,69334.0,69333.0,4.71533592]
[1730486909279,2.32528775,69334.0,69333.0,4.71533592]
[1730486909517,7.11516993,69334.0,69333.0,4.71533592]
[1730486909733,7.49141569,69334.0,69333.0,4.59995192]
[1730486910178,7.49141569,69334.0,69333.0,4.43827151]
[1730486910456,2.68158869,69334.0,69333.0,4.26339869]
[1730486910714,2.33606295,69334.0,69333.0,4.19125352]
[1730486910952,2.33606295,69334.0,69333.0,3.83840752]
[1730486911173,2.30534293,69334.0,69333.0,3.67640752]
[1730486911393,2.30534293,69334.0,69333.0,3.51440752]
[1730486911613,5.40119662,69334.0,69333.0,3.51440752]
[1730486911836,5.77744238,69334.0,69333.0,3.31042986]
[1730486912043,5.77725291,69334.0,69333.0,3.31042986]
[1730486912685,5.77725291,69334.0,69333.0,3.28158386]
[1730486912894,5.74653289,69334.0,69333.0,3.22389186]
[1730486913098,5.74653289,69334.0,69333.0,3.19504586]
[1730486913099,10.28279059,69334.0,69333.0,3.19504586]
[1730486913574,10.28281644,69334.0,69333.0,3.16619986]
[1730486913799,10.21899507,69334.0,69333.0,3.07966186]
[1730486914026,10.20499507,69334.0,69333.0,2.75566186]
[1730486914279,10.13299507,69334.0,69333.0,2.75566186]
[1730486914712,10.13299507,69334.0,69333.0,2.72681586]
[1730486914923,10.11899507,69334.0,69333.0,2.66912386]
[1730486915123,10.20817936,69334.0,69333.0,2.64027786]
[1730486915577,10.30817936,69334.0,69333.0,2.56783525]
[1730486915776,10.32217936,69334.0,69333.0,2.51014325]
[1730486916182,10.30817936,69334.0,69333.0,2.51014325]
[1730486916399,5.78708155,69334.0,69333.0,2.51014325]
[1730486916620,5.78618917,69334.0,69333.0,2.48129725]